bitfinex-derivatives/quotes_SOLF0:USTF0_20241027
["timestamp","ask_amount","ask_price","bid_price","bid_amount"]
[1730016009524,1.183,173.38,173.27,1.2523]
[1730016009826,2.8871,173.38,173.28,6.48881408]
[1730016010022,4.0,173.37,173.29,6.48881408]
[1730016010219,4.0,173.39,173.34,2.8878]
[1730016010428,4.0,173.39,173.35,1.2026]
[1730016011436,4.0,173.39,173.36,2.8874]
[1730016012424,2.8867,173.41,173.38,2.8871]
[1730016012630,2.8865,173.42,173.38,2.8871]
[1730016012930,4.0,173.41,173.38,2.8871]
[1730016017753,2.8865,173.42,173.36,1.1688]
[1730016017754,4.0,173.44,173.36,1.1688]
[1730016017979,4.0,173.44,173.37,7.72998491]
[1730016018178,4.0,173.44,173.43,2.8863]
[1730016018478,4.0,173.44,173.37,1.2586]
[1730016018862,4.0,173.44,173.39,2.8868]
[1730016020258,2.8864,173.43,173.36,1.1688]
[1730016020457,4.0,173.44,173.38,2.8871]
[1730016020747,4.0,173.44,173.35,1.2026]
[1730016020952,4.0,173.44,173.36,2.8874]
[1730016021679,4.0,173.44,173.37,2.8872]
[1730016023279,2.8864,173.42,173.37,2.8872]
[1730016023650,2.8864,173.42,173.38,2.887]
[1730016025860,7.09998109,173.41,173.38,2.887]
[1730016026154,4.0,173.4,173.38,2.887]
[1730016026355,4.0,173.4,173.37,2.8872]
[1730016028835,7.09998109,173.38,173.35,2.8875]
[1730016034133,2.8866,173.41,173.37,2.8872]
[1730016034331,4.0,173.4,173.37,2.8872]
[1730016036039,4.0,173.4,173.35,7.09998109]
[1730016036245,4.0,173.4,173.38,2.887]
[1730016037940,7.09998109,173.41,173.37,7.09998109]
[1730016038146,56.12,173.48,173.4,2.8867]
[1730016038147,7.09998109,173.42,173.4,2.8867]
[1730016038348,4.0,173.41,173.4,2.8867]
[1730016039935,6.8866,173.41,173.38,2.8871]
[1730016044943,4.0,173.41,173.39,2.8869]
[1730016045344,4.0,173.41,173.36,7.09998109]
[1730016046249,4.0,173.41,173.38,2.887]
[1730016048454,4.0,173.41,173.31,1.2838]
[1730016048651,6.8867,173.41,173.37,2.8872]
[1730016049656,7.09998109,173.39,173.31,1.2838]
[1730016049845,7.09998109,173.39,173.33,7.09998109]
[1730016050050,7.09998109,173.38,173.33,7.09998109]
[1730016050353,4.0,173.37,173.33,7.09998109]
[1730016051254,4.0,173.37,173.35,2.8875]
[1730016061459,9.98718109,173.38,173.31,1.2838]
[1730016061460,2.8861,173.44,173.38,2.8871]
[1730016061759,7.09998109,173.41,173.37,7.09998109]
[1730016061948,4.0,173.4,173.37,7.09998109]
[1730016062348,4.0,173.4,173.39,2.8869]
[1730016062555,4.0,173.41,173.39,7.09998109]
[1730016063259,4.0,173.42,173.4,2.8866]
[1730016063455,4.0,173.42,173.4,7.09998109]
[1730016063954,4.0,173.42,173.41,2.8865]
[1730016064164,4.0,173.42,173.37,1.2651]
[1730016064374,7.09998109,173.41,173.37,1.2651]
[1730016064758,7.09998109,173.41,173.38,2.887]
[1730016066559,2.8865,173.42,173.38,9.98698109]
[1730016066762,11.09998109,173.46,173.41,7.09998109]
[1730016066967,11.09998109,173.45,173.41,7.09998109]
[1730016067267,4.0,173.44,173.39,7.09998109]
[1730016067663,6.8862,173.44,173.4,2.8866]
[1730016067864,7.09998109,173.41,173.37,1.2651]
[1730016068063,4.0,173.4,173.37,1.2651]
[1730016069371,4.0,173.4,173.38,2.8871]
[1730016072372,4.0,173.4,173.37,4.1523]
[1730016072570,7.09998109,173.39,173.37,1.2651]
[1730016072781,9.98708109,173.39,173.35,2.8875]
[1730016072974,7.09998109,173.39,173.35,2.8875]
[1730016073570,7.09998109,173.39,173.33,7.09998109]
[1730016073571,2.8872,173.38,173.33,9.98778109]
[1730016073767,9.98718109,173.38,173.33,9.98778109]
[1730016073972,9.98718109,173.38,173.33,7.09998109]
[1730016074168,9.98718109,173.38,173.34,2.8877]
[1730016078481,4.0,173.4,173.33,7.09998109]
[1730016078698,4.0,173.39,173.37,7.09998109]
[1730016079681,4.0,173.39,173.38,2.8871]
[1730016081788,4.0,173.4,173.39,2.8869]
[1730016082793,7.09998109,173.42,173.39,2.8869]
[1730016083083,4.0,173.42,173.4,2.8866]
[1730016084588,9.98628109,173.43,173.4,2.8866]
[1730016084894,13.98628109,173.43,173.4,2.8866]
[1730016085693,13.98628109,173.43,173.37,7.09998109]
[1730016085887,13.98628109,173.43,173.39,2.8869]
[1730016088292,11.09998109,173.43,173.37,7.09998109]
[1730016088488,9.98658109,173.42,173.38,2.8871]
[1730016088685,7.09998109,173.42,173.36,1.2736]
[1730016089000,7.09998109,173.42,173.37,6.47885678]
[1730016089195,7.09998109,173.42,173.36,8.37358109]
[1730016089388,2.8867,173.41,173.37,2.8872]
[1730016089794,6.8863,173.43,173.39,2.8868]
[1730016089986,7.09998109,173.42,173.36,7.09998109]
[1730016090192,7.09998109,173.41,173.36,7.09998109]
[1730016091301,9.98658109,173.41,173.38,2.8871]
[1730016092094,9.98658109,173.41,173.37,2.8872]
[1730016093301,4.0,173.43,173.38,7.09998109]
[1730016094498,6.8863,173.43,173.4,2.8867]
[1730016095198,6.8863,173.43,173.41,7.09998109]
[1730016095199,4.0,173.43,173.41,7.09998109]
[1730016095397,4.0,173.43,173.41,9.98648109]
[1730016095593,7.09998109,173.46,173.36,6.4297]
[1730016095594,56.1,173.54,173.42,7.09998109]
[1730016095897,7.09998109,173.49,173.42,7.09998109]
[1730016097301,2.8854,173.48,173.44,2.886]
[1730016098623,2.8857,173.47,173.43,2.8861]
[1730016099010,7.09998109,173.49,173.42,7.09998109]
[1730016100399,2.8855,173.48,173.44,2.8861]
[1730016103103,2.8855,173.48,173.44,9.98608109]
[1730016106009,2.8857,173.47,173.44,7.09998109]
[1730016108101,4.02,173.46,173.44,7.09998109]
[1730016108411,2.8857,173.47,173.44,7.09998109]
[1730016108611,6.9057,173.47,173.44,7.09998109]
[1730016110114,11.11998109,173.47,173.36,6.4297]
[1730016110313,2.8859,173.46,173.42,9.98638109]
[1730016110515,2.8859,173.46,173.42,7.09998109]
[1730016110711,11.11998109,173.47,173.43,7.09998109]
[1730016111511,2.8858,173.46,173.43,7.09998109]
[1730016113003,11.11998109,173.47,173.43,7.09998109]
[1730016113208,2.8861,173.45,173.43,7.09998109]
[1730016113810,2.8861,173.44,173.41,7.09998109]
[1730016114215,7.09998109,173.44,173.4,7.09998109]
[1730016114411,6.9064,173.43,173.4,7.09998109]
[1730016115517,4.02,173.43,173.4,7.09998109]
[1730016115717,4.02,173.43,173.4,9.98658109]
[1730016121830,4.02,173.43,173.4,7.09998109]
[1730016122033,7.09998109,173.42,173.36,1.1775]
[1730016122222,7.09998109,173.42,173.36,8.27748109]
[1730016123230,7.09998109,173.42,173.38,2.8871]
[1730016123231,2.8867,173.41,173.38,2.8871]
[1730016123527,7.09998109,173.41,173.36,8.27748109]
[1730016123730,7.09998109,173.41,173.36,7.09998109]
[1730016123927,2.8868,173.4,173.36,9.98738109]
[1730016124127,4.02,173.39,173.36,9.98738109]
[1730016127839,11.11998109,173.39,173.35,1.26]
[1730016128043,11.11998109,173.39,173.32,1.1755]
[1730016128044,7.09998109,173.38,173.32,1.1755]
[1730016128336,7.09998109,173.38,173.33,6.46318486]
[1730016128539,7.09998109,173.38,173.32,8.27548109]
[1730016128734,9.98718109,173.38,173.34,2.8878]
[1730016130045,9.98718109,173.38,173.32,8.27548109]
[1730016130046,7.09998109,173.38,173.32,1.1755]
[1730016130335,9.98738109,173.37,173.33,4.33195152]
[1730016130539,9.98738109,173.37,173.33,2.8879]
[1730016132937,2.8874,173.37,173.33,2.8879]
[1730016133155,2.8871,173.38,173.34,2.8877]
[1730016133366,9.98708109,173.38,173.34,2.8877]
[1730016133557,7.09998109,173.38,173.31,1.2032]
[1730016133854,7.09998109,173.37,173.32,13.56385057]
[1730016134145,2.8875,173.36,173.33,1.44406632]
[1730016134351,4.02,173.35,173.32,9.98798109]
[1730016135541,4.02,173.35,173.33,9.98778109]
[1730016139339,4.02,173.35,173.33,2.8878]
[1730016140373,4.02,173.35,173.31,1.2032]
[1730016140579,4.02,173.35,173.32,7.09998109]
[1730016141173,4.02,173.35,173.31,1.2032]
[1730016141576,7.09998109,173.34,173.31,1.2032]
[1730016141777,9.98788109,173.34,173.3,9.98828109]
[1730016143478,2.8882,173.32,173.28,9.98878109]
[1730016143681,4.0,173.31,173.28,9.98878109]
[1730016144673,4.0,173.31,173.28,7.09998109]
[1730016144879,4.0,173.31,173.29,2.8886]
[1730016147688,13.98838109,173.31,173.27,2.8889]
[1730016147880,7.09998109,173.29,173.26,1.2168]
[1730016148475,7.09998109,173.29,173.25,9.98908109]
[1730016149291,2.8888,173.28,173.25,9.98908109]
[1730016149587,4.0,173.27,173.25,2.8891]
[1730016150284,4.0,173.27,173.24,2.8894]
[1730016150518,11.09998109,173.27,173.22,1.2897]
[1730016151684,2.8893,173.25,173.22,1.2897]
[1730016151883,2.8893,173.25,173.21,11.26658109]
[1730016152607,7.09998109,173.25,173.18,1.2674]
[1730016152791,7.09998109,173.25,173.19,7.09998109]
[1730016154278,2.8895,173.24,173.2,2.8901]
[1730016154477,4.0,173.23,173.2,2.8901]
[1730016156981,4.0,173.23,173.21,2.8899]
[1730016162363,4.0,173.23,173.22,2.8898]
[1730016162560,4.0,173.23,173.22,7.09998109]
[1730016164263,4.0,173.23,173.22,2.8896]
[1730016165459,4.0,173.27,173.24,2.8893]
[1730016166165,4.0,173.27,173.25,2.8891]
[1730016167065,7.09998109,173.28,173.25,2.8891]
[1730016167066,4.0,173.26,173.25,2.8891]
[1730016170471,4.0,173.29,173.25,8.30678109]
[1730016170669,4.0,173.29,173.26,7.09998109]
[1730016171064,4.0,173.29,173.25,1.2068]
[1730016171870,6.8887,173.29,173.25,4.096]
[1730016172074,6.8887,173.29,173.25,1.2068]
[1730016173369,6.8887,173.29,173.26,2.8891]
[1730016176071,6.8887,173.29,173.26,9.98908109]
[1730016180382,4.0,173.29,173.26,9.98908109]
[1730016181283,4.0,173.3,173.28,9.98878109]
[1730016181581,4.0,173.3,173.28,7.09998109]
[1730016184182,4.0,173.3,173.28,9.98868109]
[1730016184777,4.0,173.3,173.29,7.09998109]
[1730016185693,2.8881,173.32,173.29,7.09998109]
[1730016185884,4.0,173.31,173.29,7.09998109]
[1730016186185,4.0,173.31,173.3,2.8884]
[1730016190183,4.0,173.32,173.31,2.8883]
[1730016191686,62.05713243,173.35,173.31,2.8883]
[1730016191884,4.0,173.34,173.32,7.09998109]
[1730016192087,6.8878,173.34,173.32,7.09998109]
[1730016195084,4.0,173.34,173.26,1.1793]
[1730016195283,4.0,173.34,173.3,7.09998109]
[1730016195791,2.8881,173.33,173.3,7.09998109]
[1730016198397,4.0,173.34,173.3,7.09998109]
[1730016198583,2.8882,173.32,173.3,7.09998109]
[1730016200190,2.8882,173.32,173.28,9.98858109]
[1730016202801,2.8882,173.32,173.28,7.09998109]
[1730016203009,2.8882,173.32,173.29,2.8886]
[1730016206903,11.09998109,173.34,173.26,1.1793]
[1730016206904,6.8878,173.34,173.31,9.98818109]
[1730016207108,6.8878,173.34,173.31,7.09998109]
[1730016211110,2.8878,173.34,173.31,7.09998109]
[1730016211308,4.0,173.33,173.31,7.09998109]
[1730016211812,4.0,173.36,173.32,7.09998109]
[1730016212012,4.0,173.36,173.35,7.09998109]
[1730016213106,63.21998109,173.42,173.35,7.09998109]
[1730016213310,4.0,173.41,173.37,7.09998109]
[1730016213712,2.8868,173.4,173.37,7.09998109]
[1730016216515,4.0,173.39,173.35,9.98748109]
[1730016216720,6.8869,173.39,173.35,9.98748109]
[1730016218311,4.0,173.39,173.35,7.09998109]
[1730016219720,4.0,173.39,173.35,2.8876]
[1730016220022,4.0,173.39,173.36,7.09998109]
[1730016220619,6.8871,173.39,173.36,7.09998109]
[1730016228124,4.0,173.39,173.36,9.98738109]
[1730016228322,2.8868,173.4,173.36,9.98738109]
[1730016228323,4.0,173.38,173.36,9.98738109]
[1730016229019,4.0,173.38,173.37,7.09998109]
[1730016231525,4.0,173.39,173.37,7.09998109]
[1730016233031,59.0065,173.42,173.38,2.8871]
[1730016233225,4.0,173.41,173.38,7.09998109]
[1730016233430,4.0,173.41,173.32,2.4298]
[1730016233822,2.8868,173.4,173.37,7.09998109]
[1730016234931,2.8868,173.4,173.36,2.8873]
[1730016235231,2.8868,173.4,173.37,7.09998109]
[1730016235431,4.0,173.41,173.37,7.09998109]
[1730016235643,2.8868,173.4,173.37,7.09998109]
[1730016241931,2.8868,173.4,173.36,9.98728109]
[1730016242136,2.887,173.39,173.36,9.98728109]
[1730016243635,4.0,173.41,173.36,9.98728109]
[1730016243842,2.8868,173.4,173.36,9.98728109]
[1730016246728,4.0,173.41,173.36,7.09998109]
[1730016246928,6.8867,173.41,173.37,2.8873]
[1730016247230,4.0,173.41,173.36,7.09998109]
[1730016247435,2.8868,173.4,173.37,7.09998109]
[1730016247932,4.0,173.41,173.37,7.09998109]
[1730016248246,4.0,173.41,173.38,9.98708109]
[1730016248841,4.0,173.4,173.38,9.98708109]
[1730016252432,2.886,173.45,173.41,2.8866]
[1730016252640,4.0,173.44,173.41,9.98658109]
[1730016253236,4.0,173.43,173.41,9.98658109]
[1730016253436,4.0,173.43,173.41,7.09998109]
[1730016254339,4.0,173.43,173.42,2.8864]
[1730016255937,4.0,173.43,173.42,9.98638109]
[1730016256345,4.0,173.45,173.44,2.8861]
[1730016259448,6.886,173.45,173.41,2.8866]
[1730016259650,7.09998109,173.44,173.4,7.09998109]
[1730016260150,7.09998109,173.44,173.39,11.26798109]
[1730016260151,2.8864,173.43,173.39,11.26798109]
[1730016261248,2.8864,173.43,173.4,2.8868]
[1730016261840,2.8864,173.43,173.39,11.26808109]
[1730016266948,9.98618109,173.44,173.4,2.8868]
[1730016268443,2.8862,173.44,173.4,9.98678109]
[1730016270352,9.98558109,173.48,173.43,9.98618109]
[1730016270553,9.98558109,173.48,173.43,7.09998109]
[1730016270554,4.0,173.47,173.43,7.09998109]
[1730016272353,4.0,173.47,173.44,2.8861]
[1730016273364,9.98558109,173.48,173.44,2.8861]
[1730016273555,4.0,173.47,173.44,2.8861]
[1730016279155,11.09998109,173.47,173.39,1.2812]
[1730016279354,2.8861,173.45,173.41,9.98648109]
[1730016285463,2.8861,173.45,173.42,7.09998109]
[1730016290569,11.09998109,173.47,173.42,7.09998109]
[1730016290871,11.09998109,173.47,173.39,1.2812]
[1730016290872,9.98568109,173.47,173.43,9.98618109]
[1730016291068,4.0,173.46,173.43,9.98618109]
[1730016302078,4.0,173.46,173.42,7.09998109]
[1730016302283,7.09998109,173.43,173.39,1.2812]
[1730016302478,11.09998109,173.42,173.36,7.09998109]
[1730016302678,4.0,173.41,173.36,8.32428109]
[1730016302876,6.8867,173.41,173.36,11.21168109]
[1730016303784,6.8867,173.41,173.37,2.8872]
[1730016306292,2.8867,173.41,173.37,2.8872]
[1730016306586,4.0,173.4,173.37,2.8872]
[1730016307489,12.11656004,173.5,173.39,7.09998109]
[1730016307795,7.09998109,173.48,173.42,7.09998109]
[1730016308295,7.09998109,173.45,173.4,7.09998109]
[1730016308492,4.0,173.44,173.39,7.09998109]
[1730016309294,6.8862,173.44,173.39,9.98678109]
[1730016312395,2.8866,173.42,173.38,2.887]
[1730016312597,9.98658109,173.42,173.38,2.887]
[1730016313889,7.09998109,173.42,173.36,2.4086]
[1730016314096,7.09998109,173.41,173.36,11.21158109]
[1730016314285,4.0,173.4,173.36,11.21158109]
[1730016316495,11.09998109,173.4,173.36,4.1116]
[1730016316701,11.09998109,173.4,173.36,2.8873]
[1730016318695,13.98678109,173.4,173.36,2.8873]
[1730016318900,11.09998109,173.4,173.36,2.8874]
[1730016319099,11.09998109,173.4,173.35,8.33728109]
[1730016319699,2.8869,173.39,173.35,9.98738109]
[1730016320203,9.98688109,173.39,173.35,2.8874]
[1730016323409,7.09998109,173.39,173.34,7.09998109]
[1730016324507,6.8869,173.4,173.36,2.8873]
[1730016324707,11.09998109,173.4,173.36,2.8873]
[1730016326303,2.887,173.39,173.36,2.8873]
[1730016327801,7.09998109,173.38,173.31,1.2909]
[1730016328002,7.09998109,173.36,173.32,7.09998109]
[1730016328203,4.0,173.35,173.31,1.2909]
[1730016328511,4.0,173.35,173.31,4.179]
[1730016328802,11.09998109,173.35,173.31,4.179]
[1730016332211,11.09998109,173.35,173.32,2.8881]
[1730016333613,4.0,173.35,173.32,9.98808109]
[1730016335114,4.0,173.35,173.32,7.09998109]
[1730016335318,4.0,173.35,173.34,2.8878]
[1730016335711,7.09998109,173.39,173.34,2.8878]
[1730016336012,4.0,173.38,173.34,2.8878]
[1730016336418,6.8871,173.38,173.34,2.8878]
[1730016336911,4.0,173.38,173.35,9.98738109]
[1730016338113,4.0,173.37,173.36,9.98728109]
[1730016338418,4.0,173.38,173.36,9.98728109]
[1730016339503,9.98648109,173.42,173.37,2.8871]
[1730016339709,4.0,173.4,173.37,2.8871]
[1730016340110,4.0,173.41,173.39,7.09998109]
[1730016340309,4.0,173.41,173.4,7.09998109]
[1730016340710,4.0,173.41,173.4,9.98668109]
[1730016341208,4.0,173.42,173.4,9.98668109]
[1730016341903,4.0,173.42,173.41,9.98658109]
[1730016342823,4.0,173.42,173.4,9.98668109]
[1730016343718,2.8855,173.48,173.4,9.98668109]
[1730016344015,7.09998109,173.45,173.41,2.8864]
[1730016344614,9.98598109,173.45,173.41,2.8864]
[1730016345622,2.886,173.45,173.41,2.8864]
[1730016345920,9.98598109,173.45,173.41,2.8864]
[1730016347618,9.98598109,173.45,173.41,9.98638109]
[1730016350017,9.98598109,173.45,173.41,7.09998109]
[1730016362538,4.0,173.44,173.41,7.09998109]
[1730016365336,1.2517,173.53,173.43,7.09998109]
[1730016365633,2.8855,173.48,173.44,2.886]
[1730016365832,4.0,173.47,173.44,2.886]
[1730016367334,4.0,173.47,173.43,2.8862]
[1730016369236,11.09998109,173.47,173.43,2.8862]
[1730016369746,4.0,173.47,173.43,2.8862]
[1730016370043,11.09998109,173.47,173.43,2.8862]
[1730016370632,4.0,173.47,173.43,9.98618109]
[1730016370944,4.0,173.47,173.44,2.886]
[1730016372535,56.1,173.6,173.48,2.8853]
[1730016372740,7.09998109,173.54,173.48,7.09998109]
[1730016373040,4.0,173.53,173.5,2.8851]
[1730016373245,7.09998109,173.54,173.5,2.8851]
[1730016373436,4.0,173.53,173.5,2.8851]
[1730016373632,4.0,173.52,173.5,2.8851]
[1730016377643,4.0,173.52,173.51,2.8849]
[1730016381455,56.1,173.6,173.51,7.09998109]
[1730016381745,7.09998109,173.57,173.53,2.8846]
[1730016382150,3.98,173.59,173.52,7.09998109]
[1730016382450,7.09998109,173.58,173.54,2.8844]
[1730016382651,3.98,173.57,173.54,2.8844]
[1730016382855,3.98,173.57,173.53,2.8846]
[1730016384753,7.09998109,173.56,173.52,9.98468109]
[1730016384954,3.98,173.55,173.52,9.98468109]
[1730016385151,3.98,173.55,173.52,7.09998109]
[1730016385843,3.98,173.55,173.52,9.98478109]
[1730016387561,11.07998109,173.55,173.51,7.09998109]
[1730016387762,11.07998109,173.55,173.46,4.0]
[1730016387952,2.8845,173.54,173.49,7.09998109]
[1730016388455,2.8845,173.54,173.5,2.885]
[1730016390054,2.8846,173.53,173.49,9.98518109]
[1730016391761,9.98448109,173.54,173.49,9.98518109]
[1730016393355,9.98448109,173.54,173.49,7.09998109]
[1730016393554,2.8845,173.54,173.5,2.885]
[1730016394160,3.98,173.55,173.53,2.8846]
[1730016394351,9.98408109,173.57,173.52,7.09998109]
[1730016394551,4.0,173.56,173.52,7.09998109]
[1730016395056,4.0,173.56,173.52,9.98458109]
[1730016397157,4.0,173.56,173.52,7.09998109]
[1730016397360,4.0,173.56,173.53,2.8846]
[1730016409375,4.0,173.56,173.53,9.98458109]
[1730016411778,6.8842,173.56,173.51,2.8848]
[1730016411976,11.09998109,173.56,173.51,7.09998109]
[1730016413484,13.98408109,173.56,173.52,2.8848]
[1730016414882,11.09998109,173.56,173.45,2.5222]
[1730016415081,11.09998109,173.56,173.51,7.09998109]
[1730016416286,2.8843,173.55,173.51,9.98488109]
[1730016421185,2.8846,173.53,173.49,2.8851]
[1730016421383,7.09998109,173.54,173.49,9.98508109]
[1730016421685,7.09998109,173.54,173.46,1.207]
[1730016421885,7.09998109,173.51,173.46,1.207]
[1730016422086,11.07998109,173.5,173.44,7.09998109]
[1730016422387,3.98,173.49,173.44,7.09998109]
[1730016422589,6.8653,173.49,173.45,9.98588109]
[1730016422887,3.98,173.49,173.45,9.98588109]
[1730016423979,6.8654,173.49,173.45,7.09998109]
[1730016425083,2.8856,173.48,173.43,2.8862]
[1730016425288,2.8856,173.48,173.44,7.09998109]
[1730016427894,9.98558109,173.48,173.44,7.09998109]
[1730016428585,7.09998109,173.48,173.44,7.09998109]
[1730016428799,7.09998109,173.48,173.44,9.98608109]
[1730016429991,7.09998109,173.48,173.44,2.8861]
[1730016431996,7.09998109,173.45,173.41,2.8866]
[1730016432196,7.09998109,173.44,173.41,2.8866]
[1730016434193,7.09998109,173.42,173.39,2.8869]
[1730016434399,7.09998109,173.42,173.37,7.09998109]
[1730016434591,3.98,173.41,173.37,7.09998109]
[1730016434996,3.98,173.41,173.38,2.887]
[1730016435603,13.96658109,173.41,173.38,2.887]
[1730016438204,13.96658109,173.41,173.35,8.37438109]
[1730016438205,7.09998109,173.39,173.35,1.2744]
[1730016438411,9.98698109,173.39,173.35,4.162]
[1730016438703,3.98,173.41,173.35,8.37438109]
[1730016438903,13.96668109,173.41,173.37,2.8872]
[1730016439204,11.07998109,173.41,173.37,2.8872]
[1730016445015,7.09998109,173.4,173.37,2.8872]
[1730016448316,7.09998109,173.4,173.35,8.37438109]
[1730016449311,7.09998109,173.38,173.2,2.88578797]
[1730016449512,11.11998109,173.37,173.31,7.09998109]
[1730016449817,4.02,173.36,173.34,2.8879]
[1730016450010,4.02,173.36,173.31,7.09998109]
[1730016450718,4.02,173.36,173.34,2.888]
[1730016451212,7.09998109,173.35,173.3,1.2471]
[1730016451416,7.09998109,173.32,173.21,4.02]
[1730016451626,11.11998109,173.31,173.25,7.09998109]
[1730016451818,4.02,173.3,173.25,7.09998109]
[1730016453307,4.02,173.3,173.27,2.8892]
[1730016453807,4.02,173.3,173.26,2.8893]
[1730016454006,9.98858109,173.31,173.26,2.8893]
[1730016454007,7.09998109,173.29,173.26,2.8893]
[1730016454208,1.1737,173.38,173.28,7.09998109]
[1730016454413,7.09998109,173.34,173.28,7.09998109]
[1730016454717,58.9874,173.39,173.33,7.09998109]
[1730016454915,11.11998109,173.38,173.33,7.09998109]
[1730016455317,14.00738109,173.38,173.33,9.98808109]
[1730016456722,11.11998109,173.38,173.34,2.8881]
[1730016458523,56.1,173.39,173.33,7.09998109]
[1730016458719,4.02,173.38,173.37,2.8874]
[1730016459218,56.1,173.39,173.34,7.09998109]
[1730016459219,7.09998109,173.39,173.34,7.09998109]
[1730016459515,7.09998109,173.41,173.38,2.8874]
[1730016459919,4.02,173.4,173.38,2.8874]
[1730016460510,4.02,173.39,173.38,2.8874]
[1730016469836,4.02,173.39,173.36,7.09998109]
[1730016469837,17.33,173.58,173.37,7.09998109]
[1730016470028,7.09998109,173.47,173.43,2.8864]
[1730016470229,4.02,173.46,173.43,2.8864]
[1730016472628,4.02,173.46,173.41,7.09998109]
[1730016472629,11.11998109,173.46,173.42,2.8867]
[1730016475430,11.11998109,173.46,173.4,7.09998109]
[1730016475635,2.8855,173.5,173.42,7.09998109]
[1730016475930,7.09998109,173.48,173.42,7.09998109]
[1730016476125,7.09998109,173.48,173.45,2.8862]
[1730016477130,7.09998109,173.48,173.42,7.09998109]
[1730016477839,7.09998109,173.47,173.44,2.8864]
[1730016478138,7.09998109,173.47,173.38,2.4737]
[1730016478139,7.09998109,173.46,173.41,7.09998109]
[1730016478432,4.14,173.45,173.41,2.8868]
[1730016481934,7.09998109,173.44,173.41,2.8868]
[1730016482535,7.09998109,173.44,173.4,2.887]
[1730016482738,7.09998109,173.43,173.38,2.4737]
[1730016482933,7.09998109,173.41,173.38,1.2014]
[1730016483238,11.23998109,173.4,173.37,2.8876]
[1730016484229,14.12708109,173.4,173.36,2.8876]
[1730016486540,7.09998109,173.39,173.36,2.8877]
[1730016486759,9.98728109,173.39,173.33,7.09998109]
[1730016487543,7.09998109,173.37,173.32,7.09998109]
[1730016487745,4.14,173.36,173.32,7.09998109]
[1730016488242,4.14,173.36,173.3,7.09998109]
[1730016488631,4.14,173.36,173.33,2.8881]
[1730016488842,7.09998109,173.35,173.33,2.8881]
[1730016489337,7.09998109,173.35,173.27,3.6517]
[1730016489540,9.98798109,173.35,173.31,2.8884]
[1730016491143,7.09998109,173.35,173.31,2.8884]
[1730016491836,7.09998109,173.35,173.29,7.09998109]
[1730016492143,7.09998109,173.35,173.32,2.8882]
[1730016495769,7.09998109,173.35,173.33,2.8882]
[1730016496952,4.14,173.34,173.33,7.09998109]
[1730016497151,4.14,173.34,173.31,7.09998109]
[1730016499351,4.14,173.34,173.33,2.8882]
[1730016499548,4.14,173.34,173.33,9.98818109]
[1730016499778,7.09998109,173.38,173.36,2.8876]
[1730016500053,4.14,173.37,173.36,2.8876]
[1730016500253,7.09998109,173.38,173.36,2.8876]
[1730016500457,4.14,173.37,173.36,2.8876]
[1730016503549,56.1,173.45,173.34,7.09998109]
[1730016503851,7.09998109,173.41,173.36,7.09998109]
[1730016504049,4.14,173.4,173.38,7.09998109]
[1730016504259,7.09998109,173.43,173.41,2.8869]
[1730016504448,4.14,173.42,173.41,2.8869]
[1730016504955,63.19998109,173.45,173.42,2.8867]
[1730016505159,4.14,173.44,173.42,2.8867]
[1730016507752,4.14,173.44,173.41,2.8869]
[1730016511464,4.14,173.44,173.41,9.98688109]
[1730016512060,56.1,173.45,173.41,9.98688109]
[1730016512259,4.18,173.44,173.41,9.98688109]
[1730016514262,66.08618109,173.45,173.41,9.98688109]
[1730016514569,4.18,173.44,173.41,9.98688109]
[1730016517966,66.08618109,173.45,173.41,9.98688109]
[1730016518166,4.18,173.44,173.41,7.09998109]
[1730016518473,4.18,173.44,173.41,9.98688109]
[1730016521064,4.18,173.44,173.41,2.8869]
[1730016521265,7.0664,173.44,173.41,2.8869]